[Event "December 5 Late 2023"]
[Site "https://www.chess.com"]
[Date "2023.12.05"]
[Round "2"]
[White "KhalilMousavi98"]
[Black "Morales Garcia, Sergio Joshafatt"]
[Result "1-0"]
[Board "108"]
[TimeControl "180+1"]
[BlackFideId "5106249"]
[WhiteElo "2792"]
[BlackElo "2371"]
[BlackTeam "MEX"]
[WhiteClock "0:01:04"]
[BlackClock "0:00:00"]

1. e4 {[%clk 0:03:00]}  c5 {[%clk 0:02:58]} 2. Nf3 {[%clk 0:03:00]}  e6 {[%clk 0:02:58]} 3. d4 {[%clk 0:03:01]}  cxd4 {[%clk 0:02:59]} 4. Nxd4 {[%clk 0:03:01]}  Nc6 {[%clk 0:03:00]} 5. Nc3 {[%clk 0:03:02]}  Qc7 {[%clk 0:03:00]} 6. Nxc6 {[%clk 0:02:57]}  bxc6 {[%clk 0:03:00]} 7. Bd3 {[%clk 0:02:57]}  Nf6 {[%clk 0:02:59]} 8. f4 {[%clk 0:02:57]}  d5 {[%clk 0:02:58]} 9. Qf3 {[%clk 0:02:56]}  Be7 {[%clk 0:02:57]} 10. Bd2 {[%clk 0:02:56]}  Rb8 {[%clk 0:02:51]} 11. b3 {[%clk 0:02:51]}  Bb7 {[%clk 0:02:42]} 12. O-O {[%clk 0:02:49]}  O-O {[%clk 0:02:42]} 13. Qh3 {[%clk 0:02:48]}  Nxe4 {[%clk 0:02:20]} 14. Nxe4 {[%clk 0:02:49]}  dxe4 {[%clk 0:02:20]} 15. Bxe4 {[%clk 0:02:49]}  f5 {[%clk 0:02:20]} 16. Bd3 {[%clk 0:02:48]}  c5 {[%clk 0:01:45]} 17. Rae1 {[%clk 0:02:46]}  Rf6 {[%clk 0:01:45]} 18. Bc4 {[%clk 0:02:40]}  Bd5 {[%clk 0:01:38]} 19. Bc3 {[%clk 0:02:33]}  Rf7 {[%clk 0:01:28]} 20. Rxe6 {[%clk 0:02:25]}  Bxc4 {[%clk 0:01:20]} 21. bxc4 {[%clk 0:02:26]}  Qd7 {[%clk 0:01:09]} 22. Rfe1 {[%clk 0:02:24]}  Bf8 {[%clk 0:01:10]} 23. R6e5 {[%clk 0:02:11]}  Qa4 {[%clk 0:00:28]} 24. Rxf5 {[%clk 0:01:38]}  Qxc4 {[%clk 0:00:20]} 25. Rxf7 {[%clk 0:01:31]}  Qxf7 {[%clk 0:00:20]} 26. f5 {[%clk 0:01:29]}  Qxa2 {[%clk 0:00:18]} 27. f6 {[%clk 0:01:28]}  Qf7 {[%clk 0:00:09]} 28. fxg7 {[%clk 0:01:14]}  Bxg7 {[%clk 0:00:09]} 29. Qg3 {[%clk 0:01:13]}  Rf8 {[%clk 0:00:00]} 30. h3 {[%clk 0:01:04]} 1-0

[Event "December 5 Late 2023"]
[Site "https://www.chess.com"]
[Date "2023.12.05"]
[Round "2"]
[White "Panesar Vedant"]
[Black "Nita, Lucian"]
[Result "1-0"]
[Board "112"]
[TimeControl "180+1"]
[WhiteFideId "35033018"]
[BlackFideId "1206923"]
[WhiteElo "2699"]
[BlackElo "2366"]
[WhiteTeam "IND"]
[BlackTeam "ROU"]
[WhiteClock "0:01:14"]
[BlackClock "0:01:07"]

1. e4 {[%clk 0:02:57]}  d6 {[%clk 0:03:00]} 2. d4 {[%clk 0:02:57]}  Nf6 {[%clk 0:03:01]} 3. Nc3 {[%clk 0:02:58]}  e5 {[%clk 0:03:01]} 4. Nf3 {[%clk 0:02:57]}  Nbd7 {[%clk 0:03:01]} 5. Bc4 {[%clk 0:02:57]}  Be7 {[%clk 0:03:00]} 6. O-O {[%clk 0:02:58]}  O-O {[%clk 0:03:00]} 7. a4 {[%clk 0:02:58]}  a5 {[%clk 0:02:58]} 8. Re1 {[%clk 0:02:58]}  c6 {[%clk 0:02:59]} 9. h3 {[%clk 0:02:59]}  Nb6 {[%clk 0:02:58]} 10. Bf1 {[%clk 0:02:58]}  exd4 {[%clk 0:02:55]} 11. Nxd4 {[%clk 0:02:59]}  d5 {[%clk 0:02:55]} 12. e5 {[%clk 0:02:59]}  Ne8 {[%clk 0:02:55]} 13. Bf4 {[%clk 0:02:58]}  Nc7 {[%clk 0:02:49]} 14. Qf3 {[%clk 0:02:58]}  Ne6 {[%clk 0:02:48]} 15. Rad1 {[%clk 0:02:51]}  Nxd4 {[%clk 0:02:33]} 16. Rxd4 {[%clk 0:02:52]}  Bb4 {[%clk 0:02:28]} 17. Red1 {[%clk 0:02:32]}  f6 {[%clk 0:02:13]} 18. Qg3 {[%clk 0:02:26]}  fxe5 {[%clk 0:02:12]} 19. Bxe5 {[%clk 0:02:27]}  Qe7 {[%clk 0:02:10]} 20. Bd3 {[%clk 0:01:59]}  Bf5 {[%clk 0:02:09]} 21. Ne2 {[%clk 0:01:29]}  Bxd3 {[%clk 0:02:05]} 22. R1xd3 {[%clk 0:01:25]}  Rae8 {[%clk 0:02:02]} 23. Bxg7 {[%clk 0:01:19]}  Qxe2 {[%clk 0:01:27]} 24. Bxf8+ {[%clk 0:01:13]}  Kxf8 {[%clk 0:01:25]} 25. Rf3+ {[%clk 0:01:13]}  Qxf3 {[%clk 0:01:17]} 26. Qxf3+ {[%clk 0:01:13]}  Ke7 {[%clk 0:01:17]} 27. Rxb4 {[%clk 0:01:12]}  axb4 {[%clk 0:01:16]} 28. Qe3+ {[%clk 0:01:12]}  Kd7 {[%clk 0:01:15]} 29. Qxb6 {[%clk 0:01:13]}  Re1+ {[%clk 0:01:12]} 30. Kh2 {[%clk 0:01:14]}  Kc8 {[%clk 0:01:07]} 31. Qxb4 {[%clk 0:01:14]} 1-0

[Event "December 5 Late 2023"]
[Site "https://www.chess.com"]
[Date "2023.12.05"]
[Round "2"]
[White "Hernandez Jimenez, Alexander Andres"]
[Black "Wu, Derek"]
[Result "0-1"]
[Board "114"]
[TimeControl "180+1"]
[WhiteFideId "3900452"]
[BlackFideId "30914558"]
[WhiteElo "2362"]
[BlackElo "2688"]
[WhiteTeam "VEN"]
[BlackTeam "USA"]
[WhiteClock "0:01:24"]
[BlackClock "0:02:06"]

1. e4 {[%clk 0:03:00]}  e6 {[%clk 0:03:00]} 2. d4 {[%clk 0:03:00]}  d5 {[%clk 0:03:01]} 3. Nc3 {[%clk 0:02:59]}  Nf6 {[%clk 0:03:01]} 4. e5 {[%clk 0:02:58]}  Nfd7 {[%clk 0:03:01]} 5. f4 {[%clk 0:02:59]}  c5 {[%clk 0:03:01]} 6. Nf3 {[%clk 0:02:58]}  Nc6 {[%clk 0:03:02]} 7. Be3 {[%clk 0:02:52]}  Qb6 {[%clk 0:03:00]} 8. Bb5 {[%clk 0:02:48]}  c4 {[%clk 0:02:52]} 9. O-O {[%clk 0:02:40]}  a6 {[%clk 0:02:45]} 10. Bxc6 {[%clk 0:02:39]}  bxc6 {[%clk 0:02:45]} 11. Na4 {[%clk 0:02:28]}  Qb5 {[%clk 0:02:34]} 12. c3 {[%clk 0:02:11]}  Be7 {[%clk 0:02:20]} 13. b3 {[%clk 0:01:52]}  a5 {[%clk 0:02:07]} 14. bxc4 {[%clk 0:01:50]}  Qxc4 {[%clk 0:02:08]} 15. Nd2 {[%clk 0:01:35]}  Qd3 {[%clk 0:02:06]} 16. Nb3 {[%clk 0:01:24]}  Qxe3+ {[%clk 0:02:06]} 0-1

[Event "December 5 Late 2023"]
[Site "https://www.chess.com"]
[Date "2023.12.05"]
[Round "2"]
[White "Solon, Nathan"]
[Black "Kostiukov, Alexandr"]
[Result "1-0"]
[Board "115"]
[TimeControl "180+1"]
[WhiteFideId "2017229"]
[BlackFideId "14108100"]
[WhiteElo "2687"]
[BlackElo "2360"]
[WhiteTeam "USA"]
[BlackTeam "UKR"]
[WhiteClock "0:00:33"]
[BlackClock "0:00:32"]

1. d4 {[%clk 0:02:28]}  g6 {[%clk 0:02:58]} 2. e4 {[%clk 0:02:27]}  Bg7 {[%clk 0:02:57]} 3. Nf3 {[%clk 0:02:28]}  d6 {[%clk 0:02:55]} 4. Bc4 {[%clk 0:02:28]}  e6 {[%clk 0:02:53]} 5. Bb3 {[%clk 0:02:28]}  Ne7 {[%clk 0:02:46]} 6. c3 {[%clk 0:02:27]}  b6 {[%clk 0:02:46]} 7. O-O {[%clk 0:02:26]}  Bb7 {[%clk 0:02:46]} 8. Re1 {[%clk 0:02:26]}  Nd7 {[%clk 0:02:47]} 9. Nbd2 {[%clk 0:02:26]}  h6 {[%clk 0:02:46]} 10. Nf1 {[%clk 0:02:23]}  c5 {[%clk 0:02:47]} 11. Ng3 {[%clk 0:02:22]}  O-O {[%clk 0:02:45]} 12. h4 {[%clk 0:02:22]}  Nf6 {[%clk 0:02:34]} 13. Bf4 {[%clk 0:02:17]}  cxd4 {[%clk 0:02:26]} 14. cxd4 {[%clk 0:02:18]}  d5 {[%clk 0:02:26]} 15. e5 {[%clk 0:02:13]}  Ne4 {[%clk 0:02:23]} 16. Bc2 {[%clk 0:02:13]}  Nxg3 {[%clk 0:02:21]} 17. fxg3 {[%clk 0:02:12]}  h5 {[%clk 0:02:16]} 18. Ng5 {[%clk 0:02:08]}  Rc8 {[%clk 0:02:14]} 19. Bd3 {[%clk 0:02:06]}  Nf5 {[%clk 0:02:11]} 20. g4 {[%clk 0:02:00]}  hxg4 {[%clk 0:02:05]} 21. Qxg4 {[%clk 0:02:00]}  Nh6 {[%clk 0:01:46]} 22. Qh3 {[%clk 0:01:55]}  Rc4 {[%clk 0:01:40]} 23. Nxe6 {[%clk 0:01:16]}  fxe6 {[%clk 0:01:35]} 24. Bxh6 {[%clk 0:01:16]}  Bxh6 {[%clk 0:01:13]} 25. Qxe6+ {[%clk 0:01:16]}  Rf7 {[%clk 0:01:13]} 26. Bxg6 {[%clk 0:01:12]}  Rc7 {[%clk 0:01:09]} 27. Bxf7+ {[%clk 0:01:09]}  Rxf7 {[%clk 0:01:07]} 28. Qxh6 {[%clk 0:01:09]}  Rg7 {[%clk 0:01:07]} 29. Rf1 {[%clk 0:00:59]}  Ba6 {[%clk 0:01:02]} 30. Rf6 {[%clk 0:00:58]}  Bd3 {[%clk 0:00:53]} 31. Rd1 {[%clk 0:00:48]}  Be4 {[%clk 0:00:53]} 32. Rd2 {[%clk 0:00:48]}  Qc8 {[%clk 0:00:49]} 33. Rc6 {[%clk 0:00:45]}  Qg4 {[%clk 0:00:44]} 34. Qe6+ {[%clk 0:00:43]}  Kh7 {[%clk 0:00:44]} 35. Qxg4 {[%clk 0:00:43]}  Rxg4 {[%clk 0:00:43]} 36. e6 {[%clk 0:00:42]}  Kg7 {[%clk 0:00:42]} 37. Rf2 {[%clk 0:00:39]}  Bg6 {[%clk 0:00:38]} 38. e7 {[%clk 0:00:38]}  Re4 {[%clk 0:00:38]} 39. Rc7 {[%clk 0:00:34]}  Be8 {[%clk 0:00:32]} 40. Rf8 {[%clk 0:00:33]} 1-0

[Event "December 5 Late 2023"]
[Site "https://www.chess.com"]
[Date "2023.12.05"]
[Round "2"]
[White "Hambleton, Aman"]
[Black "Gutkin, Ilya"]
[Result "1-0"]
[Board "116"]
[TimeControl "180+1"]
[WhiteFideId "2606577"]
[BlackFideId "16203470"]
[WhiteElo "2686"]
[BlackElo "2356"]
[WhiteTeam "CAN"]
[BlackTeam "GER"]
[WhiteClock "0:00:03"]
[BlackClock "0:00:12"]

1. e4 {[%clk 0:03:00]}  e5 {[%clk 0:02:57]} 2. Nf3 {[%clk 0:03:00]}  Nc6 {[%clk 0:02:57]} 3. Bc4 {[%clk 0:03:00]}  Nf6 {[%clk 0:02:58]} 4. Qe2 {[%clk 0:03:00]}  Bc5 {[%clk 0:02:56]} 5. Ng5 {[%clk 0:03:00]}  O-O {[%clk 0:02:55]} 6. Nxf7 {[%clk 0:03:00]}  Nd4 {[%clk 0:02:25]} 7. Nxd8+ {[%clk 0:02:53]}  d5 {[%clk 0:02:13]} 8. Qd3 {[%clk 0:01:11]}  Rxd8 {[%clk 0:02:07]} 9. Bxd5+ {[%clk 0:00:55]}  Nxd5 {[%clk 0:02:07]} 10. Qc4 {[%clk 0:00:51]}  Be6 {[%clk 0:01:12]} 11. Qxc5 {[%clk 0:00:32]}  b6 {[%clk 0:01:04]} 12. Qxd4 {[%clk 0:00:26]}  exd4 {[%clk 0:01:01]} 13. exd5 {[%clk 0:00:26]}  Bxd5 {[%clk 0:01:01]} 14. O-O {[%clk 0:00:26]}  Re8 {[%clk 0:00:57]} 15. d3 {[%clk 0:00:07]}  Re2 {[%clk 0:00:55]} 16. Na3 {[%clk 0:00:06]}  Rae8 {[%clk 0:00:50]} 17. Bf4 {[%clk 0:00:06]}  c5 {[%clk 0:00:46]} 18. Bg3 {[%clk 0:00:04]}  a6 {[%clk 0:00:45]} 19. f3 {[%clk 0:00:02]}  Rd2 {[%clk 0:00:28]} 20. Rad1 {[%clk 0:00:01]}  Ree2 {[%clk 0:00:25]} 21. Rxd2 {[%clk 0:00:02]}  Rxd2 {[%clk 0:00:26]} 22. b3 {[%clk 0:00:02]}  b5 {[%clk 0:00:23]} 23. Rc1 {[%clk 0:00:02]}  Kf7 {[%clk 0:00:20]} 24. Kf1 {[%clk 0:00:03]}  g5 {[%clk 0:00:12]} 25. Nb1 {[%clk 0:00:03]} 1-0

[Event "December 5 Late 2023"]
[Site "https://www.chess.com"]
[Date "2023.12.05"]
[Round "2"]
[White "Micic, Aleksa"]
[Black "Kokoszczynski, Jan"]
[Result "0-1"]
[Board "117"]
[TimeControl "180+1"]
[WhiteFideId "989940"]
[BlackFideId "1174460"]
[WhiteElo "2353"]
[BlackElo "2672"]
[WhiteTeam "SRB"]
[BlackTeam "POL"]
[WhiteClock "0:00:07"]
[BlackClock "0:00:04"]

1. e4 {[%clk 0:02:58]}  c5 {[%clk 0:02:58]} 2. Nc3 {[%clk 0:02:56]}  Nc6 {[%clk 0:02:57]} 3. Bb5 {[%clk 0:02:55]}  g6 {[%clk 0:02:49]} 4. Bxc6 {[%clk 0:02:55]}  dxc6 {[%clk 0:02:42]} 5. f4 {[%clk 0:02:54]}  Bg7 {[%clk 0:02:40]} 6. Nf3 {[%clk 0:02:53]}  Nf6 {[%clk 0:02:39]} 7. d3 {[%clk 0:02:53]}  O-O {[%clk 0:02:36]} 8. O-O {[%clk 0:02:53]}  b6 {[%clk 0:02:14]} 9. Qe1 {[%clk 0:02:53]}  Ne8 {[%clk 0:02:08]} 10. e5 {[%clk 0:02:43]}  Nc7 {[%clk 0:02:06]} 11. Qh4 {[%clk 0:02:39]}  Nd5 {[%clk 0:02:05]} 12. Ne4 {[%clk 0:02:38]}  f5 {[%clk 0:02:05]} 13. exf6 {[%clk 0:02:35]}  exf6 {[%clk 0:02:04]} 14. Bd2 {[%clk 0:02:17]}  f5 {[%clk 0:01:50]} 15. Qxd8 {[%clk 0:02:16]}  Rxd8 {[%clk 0:01:51]} 16. Nc3 {[%clk 0:02:16]}  a5 {[%clk 0:01:33]} 17. Rae1 {[%clk 0:02:15]}  a4 {[%clk 0:01:32]} 18. a3 {[%clk 0:02:15]}  b5 {[%clk 0:01:31]} 19. Ne5 {[%clk 0:02:03]}  Ra6 {[%clk 0:01:16]} 20. g3 {[%clk 0:01:45]}  Bf6 {[%clk 0:00:53]} 21. Kg2 {[%clk 0:01:37]}  Nc7 {[%clk 0:00:43]} 22. Na2 {[%clk 0:01:12]}  Ne6 {[%clk 0:00:41]} 23. Bc3 {[%clk 0:01:09]}  Nd4 {[%clk 0:00:41]} 24. Bxd4 {[%clk 0:01:09]}  Rxd4 {[%clk 0:00:40]} 25. Nxg6 {[%clk 0:01:01]}  hxg6 {[%clk 0:00:40]} 26. Re8+ {[%clk 0:01:01]}  Kf7 {[%clk 0:00:40]} 27. Rxc8 {[%clk 0:01:00]}  Rd7 {[%clk 0:00:41]} 28. Nc3 {[%clk 0:00:58]}  b4 {[%clk 0:00:41]} 29. axb4 {[%clk 0:00:53]}  cxb4 {[%clk 0:00:42]} 30. Na2 {[%clk 0:00:53]}  b3 {[%clk 0:00:29]} 31. Nb4 {[%clk 0:00:43]}  Rb6 {[%clk 0:00:28]} 32. c3 {[%clk 0:00:35]}  a3 {[%clk 0:00:16]} 33. bxa3 {[%clk 0:00:19]}  Bxc3 {[%clk 0:00:16]} 34. Rxc6 {[%clk 0:00:20]}  Rxc6 {[%clk 0:00:14]} 35. Nxc6 {[%clk 0:00:20]}  Rxd3 {[%clk 0:00:14]} 36. Rb1 {[%clk 0:00:20]}  Rd2+ {[%clk 0:00:09]} 37. Kf3 {[%clk 0:00:19]}  b2 {[%clk 0:00:09]} 38. Ne5+ {[%clk 0:00:20]}  Ke6 {[%clk 0:00:05]} 39. Nc4 {[%clk 0:00:19]}  Rxh2 {[%clk 0:00:05]} 40. a4 {[%clk 0:00:19]}  Kd5 {[%clk 0:00:04]} 41. Ne3+ {[%clk 0:00:19]}  Kc5 {[%clk 0:00:04]} 42. Nd1 {[%clk 0:00:18]}  Bd4 {[%clk 0:00:02]} 43. g4 {[%clk 0:00:18]}  fxg4+ {[%clk 0:00:01]} 44. Kxg4 {[%clk 0:00:19]}  Kb4 {[%clk 0:00:02]} 45. a5 {[%clk 0:00:18]}  Kxa5 {[%clk 0:00:02]} 46. f5 {[%clk 0:00:19]}  gxf5+ {[%clk 0:00:02]} 47. Kxf5 {[%clk 0:00:19]}  Kb4 {[%clk 0:00:02]} 48. Nxb2 {[%clk 0:00:20]}  Bxb2 {[%clk 0:00:02]} 49. Rf1 {[%clk 0:00:18]}  Kc4 {[%clk 0:00:03]} 50. Kg4 {[%clk 0:00:19]}  Kd5 {[%clk 0:00:02]} 51. Kf3 {[%clk 0:00:19]}  Rh8 {[%clk 0:00:01]} 52. Rf2 {[%clk 0:00:19]}  Bd4 {[%clk 0:00:02]} 53. Rd2 {[%clk 0:00:20]}  Rf8+ {[%clk 0:00:02]} 54. Kg4 {[%clk 0:00:20]}  Ke4 {[%clk 0:00:03]} 55. Re2+ {[%clk 0:00:21]}  Be3 {[%clk 0:00:03]} 56. Ra2 {[%clk 0:00:22]}  Rg8+ {[%clk 0:00:04]} 57. Kh5 {[%clk 0:00:22]}  Bd4 {[%clk 0:00:03]} 58. Re2+ {[%clk 0:00:21]}  Kf5 {[%clk 0:00:03]} 59. Kh4 {[%clk 0:00:21]}  Be5 {[%clk 0:00:04]} 60. Rf2+ {[%clk 0:00:21]}  Bf4 {[%clk 0:00:03]} 61. Kh3 {[%clk 0:00:21]}  Ke4 {[%clk 0:00:03]} 62. Re2+ {[%clk 0:00:21]}  Kf3 {[%clk 0:00:04]} 63. Rf2+ {[%clk 0:00:07]}  Kxf2 {[%clk 0:00:04]} 0-1

[Event "December 5 Late 2023"]
[Site "https://www.chess.com"]
[Date "2023.12.05"]
[Round "2"]
[White "Nery Junior, Jose Antonio"]
[Black "Dobrikov, Marco"]
[Result "1-0"]
[Board "118"]
[TimeControl "180+1"]
[WhiteFideId "2104822"]
[BlackFideId "12950378"]
[WhiteElo "2352"]
[BlackElo "2648"]
[WhiteTeam "BRA"]
[BlackTeam "GER"]
[WhiteClock "0:00:09"]
[BlackClock "0:01:26"]

1. e4 {[%clk 0:00:27]}  c5 {[%clk 0:02:56]} 2. Nf3 {[%clk 0:00:28]}  Nc6 {[%clk 0:02:53]} 3. d4 {[%clk 0:00:29]}  cxd4 {[%clk 0:02:51]} 4. Nxd4 {[%clk 0:00:29]}  e5 {[%clk 0:02:49]} 5. Nxc6 {[%clk 0:00:29]}  bxc6 {[%clk 0:02:48]} 6. Nc3 {[%clk 0:00:29]}  f6 {[%clk 0:02:44]} 7. Bc4 {[%clk 0:00:29]}  Bc5 {[%clk 0:02:40]} 8. O-O {[%clk 0:00:29]}  Ne7 {[%clk 0:02:41]} 9. Qh5+ {[%clk 0:00:28]}  Ng6 {[%clk 0:02:33]} 10. Rd1 {[%clk 0:00:23]}  a5 {[%clk 0:02:32]} 11. Bd2 {[%clk 0:00:17]}  Ba6 {[%clk 0:02:33]} 12. Bb3 {[%clk 0:00:17]}  Qe7 {[%clk 0:02:29]} 13. Na4 {[%clk 0:00:17]}  Bb4 {[%clk 0:02:27]} 14. c3 {[%clk 0:00:17]}  Bd6 {[%clk 0:02:26]} 15. Be3 {[%clk 0:00:17]}  Bc7 {[%clk 0:02:27]} 16. Bc5 {[%clk 0:00:16]}  d6 {[%clk 0:02:24]} 17. Bb6 {[%clk 0:00:16]}  Bxb6 {[%clk 0:02:22]} 18. Nxb6 {[%clk 0:00:17]}  Rb8 {[%clk 0:02:15]} 19. Na4 {[%clk 0:00:16]}  Bc8 {[%clk 0:02:13]} 20. Rd2 {[%clk 0:00:16]}  Be6 {[%clk 0:02:13]} 21. Bxe6 {[%clk 0:00:15]}  Qxe6 {[%clk 0:02:13]} 22. b3 {[%clk 0:00:15]}  O-O {[%clk 0:02:10]} 23. g3 {[%clk 0:00:16]}  d5 {[%clk 0:02:08]} 24. Rad1 {[%clk 0:00:14]}  dxe4 {[%clk 0:02:06]} 25. Nc5 {[%clk 0:00:15]}  Qc8 {[%clk 0:01:59]} 26. Nd7 {[%clk 0:00:15]}  a4 {[%clk 0:01:55]} 27. Nxf8 {[%clk 0:00:13]}  Qxf8 {[%clk 0:01:54]} 28. b4 {[%clk 0:00:13]}  c5 {[%clk 0:01:53]} 29. a3 {[%clk 0:00:13]}  cxb4 {[%clk 0:01:52]} 30. cxb4 {[%clk 0:00:14]}  Ne7 {[%clk 0:01:39]} 31. Qe2 {[%clk 0:00:14]}  Nc6 {[%clk 0:01:38]} 32. Qc4+ {[%clk 0:00:14]}  Qf7 {[%clk 0:01:36]} 33. Qxc6 {[%clk 0:00:14]}  h6 {[%clk 0:01:35]} 34. Rd7 {[%clk 0:00:12]}  Qh5 {[%clk 0:01:34]} 35. Qxe4 {[%clk 0:00:10]}  Kh8 {[%clk 0:01:26]} 36. Rd8+ {[%clk 0:00:09]} 1-0

[Event "December 5 Late 2023"]
[Site "https://www.chess.com"]
[Date "2023.12.05"]
[Round "2"]
[White "Biernacki, Mark"]
[Black "Omelja, Artem"]
[Result "0-1"]
[Board "120"]
[TimeControl "180+1"]
[WhiteFideId "2082322"]
[BlackFideId "14119846"]
[WhiteElo "2340"]
[BlackElo "2605"]
[WhiteTeam "USA"]
[BlackTeam "UKR"]
[WhiteClock "0:00:00"]
[BlackClock "0:02:22"]

1. e4 {[%clk 0:03:00]}  c6 {[%clk 0:02:58]} 2. d4 {[%clk 0:03:00]}  d5 {[%clk 0:02:59]} 3. exd5 {[%clk 0:03:00]}  cxd5 {[%clk 0:02:59]} 4. Nf3 {[%clk 0:02:59]}  Nc6 {[%clk 0:03:00]} 5. Ne5 {[%clk 0:02:59]}  e6 {[%clk 0:03:00]} 6. Nxc6 {[%clk 0:02:55]}  bxc6 {[%clk 0:03:00]} 7. c3 {[%clk 0:02:55]}  Bd6 {[%clk 0:03:00]} 8. Bd3 {[%clk 0:02:55]}  Ne7 {[%clk 0:03:01]} 9. O-O {[%clk 0:02:53]}  Qc7 {[%clk 0:03:01]} 10. h3 {[%clk 0:02:53]}  c5 {[%clk 0:03:00]} 11. dxc5 {[%clk 0:02:53]}  Bxc5 {[%clk 0:03:01]} 12. Nd2 {[%clk 0:02:53]}  e5 {[%clk 0:03:00]} 13. Bb5+ {[%clk 0:02:43]}  Bd7 {[%clk 0:02:59]} 14. Bxd7+ {[%clk 0:02:43]}  Qxd7 {[%clk 0:03:00]} 15. Nf3 {[%clk 0:02:43]}  f6 {[%clk 0:03:00]} 16. Re1 {[%clk 0:02:38]}  O-O {[%clk 0:02:59]} 17. Qe2 {[%clk 0:02:38]}  a6 {[%clk 0:02:59]} 18. Be3 {[%clk 0:02:38]}  Bd6 {[%clk 0:02:56]} 19. Rad1 {[%clk 0:02:37]}  Qc6 {[%clk 0:02:56]} 20. Rd2 {[%clk 0:02:17]}  a5 {[%clk 0:02:56]} 21. Red1 {[%clk 0:02:17]}  a4 {[%clk 0:02:56]} 22. a3 {[%clk 0:02:09]}  Rab8 {[%clk 0:02:56]} 23. Ne1 {[%clk 0:02:03]}  e4 {[%clk 0:02:43]} 24. f4 {[%clk 0:01:16]}  exf3 {[%clk 0:02:40]} 25. Nxf3 {[%clk 0:01:08]}  Rfe8 {[%clk 0:02:41]} 26. Nd4 {[%clk 0:01:07]}  Qb6 {[%clk 0:02:39]} 27. Qf2 {[%clk 0:00:50]}  Bc5 {[%clk 0:02:36]} 28. Nf5 {[%clk 0:00:44]}  Bxe3 {[%clk 0:02:35]} 29. Nxe3 {[%clk 0:00:44]}  Red8 {[%clk 0:02:30]} 30. Nxd5 {[%clk 0:00:09]}  Nxd5 {[%clk 0:02:29]} 31. Rxd5 {[%clk 0:00:09]}  Rxd5 {[%clk 0:02:29]} 32. Rxd5 {[%clk 0:00:09]}  Qb3 {[%clk 0:02:29]} 33. Rd2 {[%clk 0:00:07]}  h6 {[%clk 0:02:29]} 34. Qd4 {[%clk 0:00:07]}  Kh8 {[%clk 0:02:28]} 35. Kf2 {[%clk 0:00:08]}  Re8 {[%clk 0:02:27]} 36. Re2 {[%clk 0:00:07]}  Rxe2+ {[%clk 0:02:25]} 37. Kxe2 {[%clk 0:00:08]}  Qxb2+ {[%clk 0:02:26]} 38. Kf3 {[%clk 0:00:09]}  Qxa3 {[%clk 0:02:22]} 39. Kg3 {[%clk 0:00:09]}  Qb3 {[%clk 0:02:21]} 40. Kh2 {[%clk 0:00:09]}  a3 {[%clk 0:02:21]} 41. Qd8+ {[%clk 0:00:08]}  Qg8 {[%clk 0:02:21]} 42. Qa5 {[%clk 0:00:06]}  a2 {[%clk 0:02:22]} 43. Qa4 {[%clk 0:00:05]}  Qe6 {[%clk 0:02:20]} 44. c4 {[%clk 0:00:01]}  Qe5+ {[%clk 0:02:21]} 45. g3 {[%clk 0:00:02]}  a1=Q {[%clk 0:02:22]} 46. Qxa1 {[%clk 0:00:02]}  Qxa1 {[%clk 0:02:21]} 47. c5 {[%clk 0:00:00]}  Qb2+ {[%clk 0:02:22]} 0-1